[Event "Early-Titled-Tuesday-Blitz-August-29-2023"]
[Site "Chess.com"]
[Date "2023.08.29"]
[Round "7"]
[White "Bauman_Guy"]
[Black "ahkashefi2800"]
[Result "1-0"]
[WhiteElo "2805"]
[BlackElo "2586"]
[TimeControl "180+1"]
[EndTime "9:13:53 PDT"]
[Termination "Bauman_Guy won by checkmate"]

1. e4 {[%clk 0:03:00.9]} 1... c6 {[%clk 0:02:53.9]} 2. d4 {[%clk 0:03:00]} 2...
d5 {[%clk 0:02:54.3]} 3. e5 {[%clk 0:03:00.9]} 3... Bf5 {[%clk 0:02:53.9]} 4. h4
{[%clk 0:03:00.4]} 4... h5 {[%clk 0:02:53.6]} 5. Bd3 {[%clk 0:03:00.5]} 5...
Bxd3 {[%clk 0:02:53.4]} 6. Qxd3 {[%clk 0:03:01.4]} 6... e6 {[%clk 0:02:53.8]} 7.
Nf3 {[%clk 0:03:01]} 7... Qb6 {[%clk 0:02:52.9]} 8. O-O {[%clk 0:02:57.6]} 8...
Ne7 {[%clk 0:02:51.4]} 9. Bg5 {[%clk 0:02:57]} 9... Nf5 {[%clk 0:02:50.9]} 10.
Nbd2 {[%clk 0:02:55.8]} 10... c5 {[%clk 0:02:48.1]} 11. c4 {[%clk 0:02:55.3]}
11... Qa6 {[%clk 0:02:32.5]} 12. Qb3 {[%clk 0:02:52.2]} 12... Nc6 {[%clk
0:02:29.7]} 13. dxc5 {[%clk 0:02:50.3]} 13... d4 {[%clk 0:02:29.9]} 14. Ne4
{[%clk 0:02:49.5]} 14... Be7 {[%clk 0:02:20.7]} 15. Bxe7 {[%clk 0:02:45.6]}
15... Kxe7 {[%clk 0:02:19.5]} 16. Nd6 {[%clk 0:02:45.5]} 16... Rab8 {[%clk
0:02:17.2]} 17. Qd3 {[%clk 0:02:42.7]} 17... Rbd8 {[%clk 0:01:59.1]} 18. a3
{[%clk 0:02:39.1]} 18... b6 {[%clk 0:01:36.6]} 19. b4 {[%clk 0:02:36.3]} 19...
bxc5 {[%clk 0:01:34.1]} 20. b5 {[%clk 0:02:36]} 20... Nxe5 {[%clk 0:01:25]} 21.
Nxf5+ {[%clk 0:02:35.5]} 21... exf5 {[%clk 0:01:24.9]} 22. Nxe5 {[%clk
0:02:34.9]} 22... Qf6 {[%clk 0:01:22.5]} 23. Nc6+ {[%clk 0:02:34.7]} 23... Kd6
{[%clk 0:01:18.7]} 24. Nxd8 {[%clk 0:02:34.5]} 24... Rxd8 {[%clk 0:01:17.4]} 25.
Rfe1 {[%clk 0:02:33.6]} 25... g6 {[%clk 0:01:17.6]} 26. Qg3+ {[%clk 0:02:32.5]}
26... f4 {[%clk 0:01:17.5]} 27. Qf3 {[%clk 0:02:32.9]} 27... Kc7 {[%clk
0:01:16.6]} 28. a4 {[%clk 0:02:29.1]} 28... Rd6 {[%clk 0:01:16.5]} 29. a5 {[%clk
0:02:28.6]} 29... d3 {[%clk 0:01:16.7]} 30. b6+ {[%clk 0:02:25.2]} 30... axb6
{[%clk 0:01:11.1]} 31. a6 {[%clk 0:02:25.2]} 31... d2 {[%clk 0:01:10.2]} 32.
Qb7+ {[%clk 0:02:24.9]} 32... Kd8 {[%clk 0:01:09.6]} 33. Qb8+ {[%clk 0:02:25]}
33... Kd7 {[%clk 0:01:09.7]} 34. Qe8+ {[%clk 0:02:24.8]} 34... Kc7 {[%clk
0:01:08.2]} 35. Re7+ {[%clk 0:02:25.2]} 35... Qxe7 {[%clk 0:01:05.5]} 36. Qxe7+
{[%clk 0:02:26.1]} 36... Rd7 {[%clk 0:01:06.4]} 37. Qxd7+ {[%clk 0:02:25.8]}
37... Kxd7 {[%clk 0:01:06.7]} 38. a7 {[%clk 0:02:26.2]} 38... Ke6 {[%clk
0:01:06.1]} 39. a8=Q {[%clk 0:02:25.2]} 39... Kf5 {[%clk 0:01:06.6]} 40. Rd1
{[%clk 0:02:23.6]} 40... Kg4 {[%clk 0:01:06.8]} 41. Qf3+ {[%clk 0:02:23.5]}
41... Kxh4 {[%clk 0:01:06.9]} 42. Qxf4# {[%clk 0:02:23.7]} 1-0

[Event "Early-Titled-Tuesday-Blitz-August-29-2023"]
[Site "Chess.com"]
[Date "2023.08.29"]
[Round "7"]
[White "dosto07"]
[Black "amanjazu"]
[Result "1-0"]
[WhiteElo "2470"]
[BlackElo "2324"]
[TimeControl "180+1"]
[EndTime "9:13:57 PDT"]
[Termination "dosto07 won by resignation"]

1. e4 {[%clk 0:03:00.9]} 1... d5 {[%clk 0:02:58.6]} 2. exd5 {[%clk 0:02:58]}
2... Nf6 {[%clk 0:02:59]} 3. d4 {[%clk 0:02:55.5]} 3... Bg4 {[%clk 0:02:59.3]}
4. Be2 {[%clk 0:02:54.6]} 4... Bxe2 {[%clk 0:02:59.4]} 5. Qxe2 {[%clk
0:02:54.9]} 5... Qxd5 {[%clk 0:02:59.2]} 6. Nf3 {[%clk 0:02:55.5]} 6... c6
{[%clk 0:02:57.2]} 7. O-O {[%clk 0:02:55.1]} 7... e6 {[%clk 0:02:56.4]} 8. c4
{[%clk 0:02:49.1]} 8... Qd8 {[%clk 0:02:51.5]} 9. Nc3 {[%clk 0:02:48]} 9... Bd6
{[%clk 0:02:51.4]} 10. Bg5 {[%clk 0:02:47.1]} 10... Nbd7 {[%clk 0:02:50.1]} 11.
d5 {[%clk 0:02:36.6]} 11... cxd5 {[%clk 0:02:37.8]} 12. cxd5 {[%clk 0:02:36]}
12... e5 {[%clk 0:02:22.8]} 13. Ne4 {[%clk 0:02:20.1]} 13... Qb8 {[%clk
0:02:17.5]} 14. Bxf6 {[%clk 0:02:13.9]} 14... Nxf6 {[%clk 0:02:16.9]} 15. Nxf6+
{[%clk 0:02:12]} 15... gxf6 {[%clk 0:02:16.6]} 16. Nh4 {[%clk 0:02:12.1]} 16...
O-O {[%clk 0:02:02.3]} 17. Nf5 {[%clk 0:02:08.4]} 17... Kh8 {[%clk 0:01:57.2]}
18. Qh5 {[%clk 0:01:58.2]} 18... Rg8 {[%clk 0:01:47.5]} 19. Qxf7 {[%clk
0:01:53.3]} 19... Qf8 {[%clk 0:01:48]} 20. Qe6 {[%clk 0:01:31.9]} 20... Rd8
{[%clk 0:01:45]} 21. Rac1 {[%clk 0:01:28.7]} 21... Rg5 {[%clk 0:01:30.4]} 22.
Rc3 {[%clk 0:01:12.9]} 22... Qg8 {[%clk 0:01:28.4]} 23. Qxf6+ {[%clk 0:01:11.6]}
1-0

[Event "Early-Titled-Tuesday-Blitz-August-29-2023"]
[Site "Chess.com"]
[Date "2023.08.29"]
[Round "7"]
[White "GroovyKettle"]
[Black "Kildepiotr"]
[Result "1-0"]
[WhiteElo "2909"]
[BlackElo "2669"]
[TimeControl "180+1"]
[EndTime "9:13:58 PDT"]
[Termination "GroovyKettle won by resignation"]

1. e4 {[%clk 0:03:00.9]} 1... g6 {[%clk 0:02:52.8]} 2. d4 {[%clk 0:03:00.7]}
2... Bg7 {[%clk 0:02:53.4]} 3. Nf3 {[%clk 0:03:00.1]} 3... c6 {[%clk 0:02:53.8]}
4. Nc3 {[%clk 0:02:59.6]} 4... d6 {[%clk 0:02:54]} 5. h3 {[%clk 0:02:59.3]} 5...
Nf6 {[%clk 0:02:54.5]} 6. Bc4 {[%clk 0:02:58.8]} 6... b5 {[%clk 0:02:53.3]} 7.
Bd3 {[%clk 0:02:57.7]} 7... O-O {[%clk 0:02:52.8]} 8. O-O {[%clk 0:02:58.3]}
8... Nbd7 {[%clk 0:02:51.7]} 9. a4 {[%clk 0:02:57.1]} 9... b4 {[%clk 0:02:51.7]}
10. Ne2 {[%clk 0:02:57.6]} 10... e5 {[%clk 0:02:51.9]} 11. dxe5 {[%clk
0:02:55.4]} 11... Nxe5 {[%clk 0:02:49.9]} 12. Nxe5 {[%clk 0:02:55]} 12... dxe5
{[%clk 0:02:50.8]} 13. Be3 {[%clk 0:02:55.2]} 13... Qe7 {[%clk 0:02:48.2]} 14.
Nc1 {[%clk 0:02:55.3]} 14... Be6 {[%clk 0:02:44.2]} 15. Nb3 {[%clk 0:02:53.9]}
15... Nd7 {[%clk 0:02:44.4]} 16. Na5 {[%clk 0:02:53.4]} 16... Rfc8 {[%clk
0:02:41.2]} 17. Ba6 {[%clk 0:02:50.2]} 17... Rc7 {[%clk 0:02:40.7]} 18. Bb7
{[%clk 0:02:40.2]} 18... Re8 {[%clk 0:02:00]} 19. Bxc6 {[%clk 0:02:16.7]} 19...
Rd8 {[%clk 0:01:52.5]} 20. Qe2 {[%clk 0:02:03]} 20... Nc5 {[%clk 0:01:32.7]} 21.
Bxc5 {[%clk 0:01:44.6]} 21... Qxc5 {[%clk 0:01:32.4]} 22. Nb7 {[%clk 0:01:44.2]}
22... Qxc6 {[%clk 0:01:30.8]} 23. Nxd8 {[%clk 0:01:44.4]} 23... Qc4 {[%clk
0:01:29]} 24. Qxc4 {[%clk 0:01:34.9]} 24... Bxc4 {[%clk 0:01:29.9]} 25. Rfd1
{[%clk 0:01:35]} 25... f6 {[%clk 0:01:15.3]} 26. Rd6 {[%clk 0:01:31.8]} 26...
Bf8 {[%clk 0:01:10.6]} 27. Rc6 {[%clk 0:01:31.2]} 1-0

[Event "Early-Titled-Tuesday-Blitz-August-29-2023"]
[Site "Chess.com"]
[Date "2023.08.29"]
[Round "7"]
[White "LiamPutnam2008"]
[Black "Agibileg"]
[Result "1-0"]
[WhiteElo "2808"]
[BlackElo "2617"]
[TimeControl "180+1"]
[EndTime "9:14:03 PDT"]
[Termination "LiamPutnam2008 won by resignation"]

1. Nf3 {[%clk 0:03:00.9]} 1... Nf6 {[%clk 0:02:58.6]} 2. c4 {[%clk 0:03:00.9]}
2... g6 {[%clk 0:02:58.7]} 3. Nc3 {[%clk 0:03:01.7]} 3... Bg7 {[%clk 0:02:59.2]}
4. e4 {[%clk 0:03:02.4]} 4... d6 {[%clk 0:02:59.8]} 5. d4 {[%clk 0:03:03.1]}
5... O-O {[%clk 0:03:00.5]} 6. Be2 {[%clk 0:03:03.9]} 6... e5 {[%clk 0:03:01]}
7. O-O {[%clk 0:03:04.8]} 7... Nc6 {[%clk 0:03:00.9]} 8. d5 {[%clk 0:03:04.5]}
8... Ne7 {[%clk 0:03:01.5]} 9. b4 {[%clk 0:03:05.1]} 9... Nh5 {[%clk 0:03:01.5]}
10. g3 {[%clk 0:02:56.7]} 10... f5 {[%clk 0:03:00.3]} 11. exf5 {[%clk
0:02:55.6]} 11... gxf5 {[%clk 0:02:59.1]} 12. Qc2 {[%clk 0:02:42.1]} 12... Nf6
{[%clk 0:02:56.1]} 13. Ng5 {[%clk 0:02:41]} 13... Ng6 {[%clk 0:02:53]} 14. Ne6
{[%clk 0:02:32.4]} 14... Bxe6 {[%clk 0:02:52.4]} 15. dxe6 {[%clk 0:02:33.3]}
15... c6 {[%clk 0:02:52.9]} 16. Qxf5 {[%clk 0:02:31.1]} 16... Qe7 {[%clk
0:02:51.5]} 17. Bg5 {[%clk 0:02:24.1]} 17... Rae8 {[%clk 0:02:38.3]} 18. Ne4
{[%clk 0:02:09.6]} 18... Qxe6 {[%clk 0:02:38.3]} 19. Qxe6+ {[%clk 0:02:07.6]}
19... Rxe6 {[%clk 0:02:39.2]} 20. Bxf6 {[%clk 0:02:08.4]} 20... Bxf6 {[%clk
0:02:38.9]} 21. Bg4 {[%clk 0:02:09.1]} 21... Re7 {[%clk 0:02:36]} 22. Nxd6
{[%clk 0:02:05.5]} 22... e4 {[%clk 0:02:28.2]} 23. Rae1 {[%clk 0:02:02.4]} 23...
Bc3 {[%clk 0:02:23.3]} 24. Rxe4 {[%clk 0:02:01.2]} 24... Rxe4 {[%clk 0:02:20.4]}
25. Nxe4 {[%clk 0:02:02.1]} 25... Bxb4 {[%clk 0:02:20.8]} 26. Rb1 {[%clk
0:02:00.3]} 26... a5 {[%clk 0:02:20.3]} 27. a3 {[%clk 0:01:59.8]} 27... Bxa3
{[%clk 0:02:14.9]} 28. Rxb7 {[%clk 0:02:00.7]} 28... Ne5 {[%clk 0:02:01.1]} 29.
Be6+ {[%clk 0:01:59.6]} 29... Kh8 {[%clk 0:02:01]} 30. f4 {[%clk 0:01:56.1]}
30... Nf3+ {[%clk 0:02:00.4]} 31. Kg2 {[%clk 0:01:54.3]} 31... Nd4 {[%clk
0:02:00.5]} 32. Ng5 {[%clk 0:01:49]} 32... Nxe6 {[%clk 0:01:58.7]} 33. Nxe6
{[%clk 0:01:49.9]} 33... Ra8 {[%clk 0:01:35.4]} 34. f5 {[%clk 0:01:45.9]} 34...
Bb2 {[%clk 0:01:31.9]} 35. Rxb2 {[%clk 0:01:45.4]} 35... a4 {[%clk 0:01:28.6]}
36. f6 {[%clk 0:01:45.4]} 36... a3 {[%clk 0:01:28.6]} 37. Ra2 {[%clk 0:01:45.8]}
1-0

[Event "Early-Titled-Tuesday-Blitz-August-29-2023"]
[Site "Chess.com"]
[Date "2023.08.29"]
[Round "7"]
[White "Fraler15"]
[Black "DanielTitichoca"]
[Result "0-1"]
[WhiteElo "2246"]
[BlackElo "2424"]
[TimeControl "180+1"]
[EndTime "9:14:07 PDT"]
[Termination "DanielTitichoca won by resignation"]

1. d4 {[%clk 0:03:00.9]} 1... Nf6 {[%clk 0:02:58.8]} 2. Nf3 {[%clk 0:03:00.2]}
2... b6 {[%clk 0:02:57.9]} 3. g3 {[%clk 0:02:58.9]} 3... Bb7 {[%clk 0:02:58.8]}
4. Bg2 {[%clk 0:02:59.2]} 4... g6 {[%clk 0:02:59.4]} 5. c4 {[%clk 0:02:55.9]}
5... Bg7 {[%clk 0:02:59.7]} 6. d5 {[%clk 0:02:56.1]} 6... O-O {[%clk 0:03:00.6]}
7. Nc3 {[%clk 0:02:54.9]} 7... e6 {[%clk 0:02:55.8]} 8. O-O {[%clk 0:02:52.8]}
8... Re8 {[%clk 0:02:52.4]} 9. e4 {[%clk 0:02:52]} 9... a5 {[%clk 0:02:50.4]}
10. h3 {[%clk 0:02:44.5]} 10... exd5 {[%clk 0:02:46.8]} 11. exd5 {[%clk
0:02:43.8]} 11... d6 {[%clk 0:02:44.1]} 12. Nd4 {[%clk 0:02:40.4]} 12... Nbd7
{[%clk 0:02:42.7]} 13. b3 {[%clk 0:02:29.9]} 13... Nc5 {[%clk 0:02:37.9]} 14.
Rb1 {[%clk 0:02:27.7]} 14... Nfe4 {[%clk 0:02:36.3]} 15. Nxe4 {[%clk 0:02:27.2]}
15... Nxe4 {[%clk 0:02:35.4]} 16. Bb2 {[%clk 0:02:26.6]} 16... Qd7 {[%clk
0:02:33.4]} 17. Qd3 {[%clk 0:02:22.6]} 17... Nc5 {[%clk 0:02:32]} 18. Qc2 {[%clk
0:02:20.3]} 18... Re7 {[%clk 0:02:14.2]} 19. Rbe1 {[%clk 0:02:19.3]} 19... Rae8
{[%clk 0:02:13.9]} 20. Rxe7 {[%clk 0:02:05.7]} 20... Qxe7 {[%clk 0:02:11.7]} 21.
a3 {[%clk 0:01:47.2]} 21... Na6 {[%clk 0:01:57.1]} 22. Bc3 {[%clk 0:01:43.1]}
22... h5 {[%clk 0:01:36.1]} 23. Qd2 {[%clk 0:01:31.8]} 23... Nc5 {[%clk
0:01:31.5]} 24. b4 {[%clk 0:01:28.2]} 24... axb4 {[%clk 0:01:30]} 25. axb4
{[%clk 0:01:28]} 25... Ne4 {[%clk 0:01:30.6]} 26. Bxe4 {[%clk 0:01:21.8]} 26...
Qxe4 {[%clk 0:01:31.5]} 27. Re1 {[%clk 0:01:11.9]} 27... Qxe1+ {[%clk
0:01:30.4]} 28. Qxe1 {[%clk 0:01:11.6]} 28... Rxe1+ {[%clk 0:01:31]} 29. Bxe1
{[%clk 0:01:09.2]} 29... Bxd4 {[%clk 0:01:31.1]} 0-1

[Event "Early-Titled-Tuesday-Blitz-August-29-2023"]
[Site "Chess.com"]
[Date "2023.08.29"]
[Round "7"]
[White "Dewarfd"]
[Black "pankajfm"]
[Result "1-0"]
[WhiteElo "2197"]
[BlackElo "2089"]
[TimeControl "180+1"]
[EndTime "9:14:10 PDT"]
[Termination "Dewarfd won by resignation"]

1. d4 {[%clk 0:02:59.3]} 1... g6 {[%clk 0:02:58]} 2. e3 {[%clk 0:02:59]} 2...
Bg7 {[%clk 0:02:58.7]} 3. Nf3 {[%clk 0:02:58.3]} 3... e6 {[%clk 0:02:57.7]} 4.
Be2 {[%clk 0:02:58.7]} 4... Ne7 {[%clk 0:02:57.2]} 5. O-O {[%clk 0:02:58.3]}
5... O-O {[%clk 0:02:57]} 6. c4 {[%clk 0:02:58.1]} 6... d5 {[%clk 0:02:56.6]} 7.
Nbd2 {[%clk 0:02:57.1]} 7... c5 {[%clk 0:02:53.4]} 8. dxc5 {[%clk 0:02:54]} 8...
Qc7 {[%clk 0:02:50.3]} 9. a3 {[%clk 0:02:53.1]} 9... Qxc5 {[%clk 0:02:49.4]} 10.
b4 {[%clk 0:02:52.1]} 10... Qc7 {[%clk 0:02:48.8]} 11. Rb1 {[%clk 0:02:51.7]}
11... dxc4 {[%clk 0:02:43]} 12. Nxc4 {[%clk 0:02:49.8]} 12... Nbc6 {[%clk
0:02:43.4]} 13. Bb2 {[%clk 0:02:48]} 13... Rd8 {[%clk 0:02:35.3]} 14. Qb3 {[%clk
0:02:42.5]} 14... a5 {[%clk 0:02:03.8]} 15. Bxg7 {[%clk 0:02:39.4]} 15... Kxg7
{[%clk 0:02:04.7]} 16. b5 {[%clk 0:02:34.2]} 16... Nb8 {[%clk 0:01:44.9]} 17.
Rbc1 {[%clk 0:02:24.8]} 17... Nd5 {[%clk 0:01:29.1]} 18. Qb2+ {[%clk 0:02:11.6]}
18... Kg8 {[%clk 0:01:22.6]} 19. Rfd1 {[%clk 0:01:57.8]} 19... Qe7 {[%clk
0:01:19.3]} 20. e4 {[%clk 0:01:51.5]} 20... Nf4 {[%clk 0:01:18.9]} 21. Nb6
{[%clk 0:01:44.4]} 21... Nxe2+ {[%clk 0:01:05.3]} 22. Qxe2 {[%clk 0:01:42.5]}
22... Rxd1+ {[%clk 0:00:51.2]} 23. Qxd1 {[%clk 0:01:43.2]} 1-0

[Event "Early-Titled-Tuesday-Blitz-August-29-2023"]
[Site "Chess.com"]
[Date "2023.08.29"]
[Round "7"]
[White "Biregina"]
[Black "aranibos"]
[Result "0-1"]
[WhiteElo "2420"]
[BlackElo "2288"]
[TimeControl "180+1"]
[EndTime "9:14:17 PDT"]
[Termination "aranibos won by resignation"]

1. d4 {[%clk 0:03:00.9]} 1... d5 {[%clk 0:02:59.2]} 2. Bf4 {[%clk 0:03:00.6]}
2... Nf6 {[%clk 0:02:58.9]} 3. e3 {[%clk 0:03:00.3]} 3... a6 {[%clk 0:02:57.6]}
4. Nf3 {[%clk 0:02:57.4]} 4... c5 {[%clk 0:02:55.9]} 5. dxc5 {[%clk 0:02:56.7]}
5... Qa5+ {[%clk 0:02:53]} 6. Nc3 {[%clk 0:02:55.7]} 6... Qxc5 {[%clk
0:02:52.8]} 7. Na4 {[%clk 0:02:38.3]} 7... Qa5+ {[%clk 0:02:48.8]} 8. c3 {[%clk
0:02:37.7]} 8... Nc6 {[%clk 0:02:41.2]} 9. Ne5 {[%clk 0:02:17.1]} 9... e6 {[%clk
0:02:31.3]} 10. Nxc6 {[%clk 0:02:14.4]} 10... bxc6 {[%clk 0:02:31.9]} 11. b4
{[%clk 0:02:14.4]} 11... Bxb4 {[%clk 0:02:18.3]} 12. cxb4 {[%clk 0:02:15.3]}
12... Qxb4+ {[%clk 0:02:18.3]} 13. Ke2 {[%clk 0:02:14.4]} 13... Qc4+ {[%clk
0:02:12.6]} 14. Kf3 {[%clk 0:02:06]} 14... Qe4+ {[%clk 0:01:59.1]} 15. Ke2
{[%clk 0:02:04.4]} 15... Qc4+ {[%clk 0:01:53.2]} 16. Qd3 {[%clk 0:01:49.4]}
16... Qxa4 {[%clk 0:01:50.5]} 17. Be5 {[%clk 0:01:46.8]} 17... a5 {[%clk
0:01:47.5]} 18. Bxf6 {[%clk 0:01:45.4]} 18... Ba6 {[%clk 0:01:46.5]} 19. Bxg7
{[%clk 0:01:43.5]} 19... Bxd3+ {[%clk 0:01:41.8]} 20. Kxd3 {[%clk 0:01:44.4]}
20... Rg8 {[%clk 0:01:37.9]} 21. Bc3 {[%clk 0:01:40.9]} 21... Qe4+ {[%clk
0:01:33.8]} 22. Kd2 {[%clk 0:01:18.1]} 22... Rb8 {[%clk 0:01:33.7]} 23. f3
{[%clk 0:01:13.9]} 23... Qa4 {[%clk 0:01:31.9]} 24. Bd3 {[%clk 0:01:13.3]} 24...
Rxg2+ {[%clk 0:01:28.7]} 25. Ke1 {[%clk 0:01:13.2]} 25... Qh4+ {[%clk
0:01:24.9]} 26. Kd1 {[%clk 0:01:12.4]} 26... Qf2 {[%clk 0:01:22.1]} 27. Rf1
{[%clk 0:01:11]} 27... Qxe3 {[%clk 0:01:20.5]} 0-1

[Event "Early-Titled-Tuesday-Blitz-August-29-2023"]
[Site "Chess.com"]
[Date "2023.08.29"]
[Round "7"]
[White "Beltraxtor"]
[Black "abhidabhi"]
[Result "0-1"]
[WhiteElo "2647"]
[BlackElo "2901"]
[TimeControl "180+1"]
[EndTime "9:14:27 PDT"]
[Termination "abhidabhi won by resignation"]

1. e4 {[%clk 0:02:54.1]} 1... c5 {[%clk 0:02:57.9]} 2. Nf3 {[%clk 0:02:52.7]}
2... Nc6 {[%clk 0:02:58.3]} 3. Bb5 {[%clk 0:02:51.9]} 3... e6 {[%clk 0:02:58]}
4. O-O {[%clk 0:02:51.6]} 4... Nge7 {[%clk 0:02:57]} 5. c3 {[%clk 0:02:52.1]}
5... a6 {[%clk 0:02:55.2]} 6. Ba4 {[%clk 0:02:52.5]} 6... b5 {[%clk 0:02:54.4]}
7. Bc2 {[%clk 0:02:53]} 7... d5 {[%clk 0:02:53.4]} 8. exd5 {[%clk 0:02:51]} 8...
Nxd5 {[%clk 0:02:51.8]} 9. d4 {[%clk 0:02:47.7]} 9... cxd4 {[%clk 0:02:51.5]}
10. Nxd4 {[%clk 0:02:46.8]} 10... Bb7 {[%clk 0:02:51.8]} 11. Re1 {[%clk
0:02:42.2]} 11... Be7 {[%clk 0:02:51.5]} 12. Nxc6 {[%clk 0:02:35.3]} 12... Bxc6
{[%clk 0:02:51.3]} 13. Nd2 {[%clk 0:02:36]} 13... O-O {[%clk 0:02:44]} 14. Nf3
{[%clk 0:02:35.3]} 14... Qc7 {[%clk 0:02:42.4]} 15. Ne5 {[%clk 0:02:30.9]} 15...
Bb7 {[%clk 0:02:42.5]} 16. Qh5 {[%clk 0:01:58]} 16... f5 {[%clk 0:02:41.7]} 17.
Qe2 {[%clk 0:01:53.4]} 17... Bd6 {[%clk 0:02:34.8]} 18. a4 {[%clk 0:01:46.8]}
18... b4 {[%clk 0:02:30.1]} 19. c4 {[%clk 0:01:45.6]} 19... Nf6 {[%clk
0:02:29.8]} 20. f3 {[%clk 0:01:35.2]} 20... Ne4 {[%clk 0:02:21.1]} 21. fxe4
{[%clk 0:00:35.6]} 21... Bxe5 {[%clk 0:02:20.5]} 22. exf5 {[%clk 0:00:35.5]}
22... Bxh2+ {[%clk 0:02:19.5]} 23. Kh1 {[%clk 0:00:36]} 23... exf5 {[%clk
0:02:19.4]} 24. Qe6+ {[%clk 0:00:15]} 24... Kh8 {[%clk 0:02:18.8]} 25. Bg5
{[%clk 0:00:15.6]} 25... Qg3 {[%clk 0:02:10.4]} 0-1

[Event "Early-Titled-Tuesday-Blitz-August-29-2023"]
[Site "Chess.com"]
[Date "2023.08.29"]
[Round "7"]
[White "Good_Knight_Kiss"]
[Black "angryspacevoid"]
[Result "0-1"]
[WhiteElo "2372"]
[BlackElo "2531"]
[TimeControl "180+1"]
[EndTime "9:14:31 PDT"]
[Termination "angryspacevoid won by resignation"]

1. e4 {[%clk 0:03:00.9]} 1... g6 {[%clk 0:02:57]} 2. d4 {[%clk 0:03:00.4]} 2...
Bg7 {[%clk 0:02:57.5]} 3. Nc3 {[%clk 0:03:00.6]} 3... e6 {[%clk 0:02:57.5]} 4.
Nf3 {[%clk 0:02:58.7]} 4... Ne7 {[%clk 0:02:57.8]} 5. Bg5 {[%clk 0:02:55.2]}
5... h6 {[%clk 0:02:52.2]} 6. Be3 {[%clk 0:02:55.1]} 6... f5 {[%clk 0:02:51.6]}
7. Qd2 {[%clk 0:02:53]} 7... g5 {[%clk 0:02:50.7]} 8. exf5 {[%clk 0:02:49.3]}
8... exf5 {[%clk 0:02:49.8]} 9. Qd3 {[%clk 0:02:32.7]} 9... O-O {[%clk 0:02:44]}
10. h4 {[%clk 0:02:31.3]} 10... g4 {[%clk 0:02:41.2]} 11. Ne5 {[%clk 0:02:30.3]}
11... Nbc6 {[%clk 0:02:34.3]} 12. f4 {[%clk 0:02:04.2]} 12... gxf3 {[%clk
0:02:23]} 13. gxf3 {[%clk 0:01:48.3]} 13... f4 {[%clk 0:02:16.4]} 14. Bf2 {[%clk
0:01:35.6]} 14... d6 {[%clk 0:02:10.9]} 15. Nxc6 {[%clk 0:01:21.7]} 15... bxc6
{[%clk 0:02:11.8]} 16. O-O-O {[%clk 0:01:08.4]} 16... a5 {[%clk 0:01:59]} 17.
Bh3 {[%clk 0:00:54.6]} 17... Bf5 {[%clk 0:01:45.8]} 18. Bxf5 {[%clk 0:00:51.3]}
18... Rxf5 {[%clk 0:01:46.7]} 19. Rde1 {[%clk 0:00:48.6]} 19... Rf6 {[%clk
0:01:39.6]} 20. Ne4 {[%clk 0:00:46.4]} 20... Rf7 {[%clk 0:01:37.1]} 21. Rhg1
{[%clk 0:00:42.2]} 21... a4 {[%clk 0:01:32.3]} 22. a3 {[%clk 0:00:38]} 22... Rb8
{[%clk 0:01:30.3]} 23. Rg6 {[%clk 0:00:34.7]} 23... Nxg6 {[%clk 0:01:25]} 0-1

[Event "Early-Titled-Tuesday-Blitz-August-29-2023"]
[Site "Chess.com"]
[Date "2023.08.29"]
[Round "7"]
[White "zabivol_mc"]
[Black "MrAnnihilation"]
[Result "1-0"]
[WhiteElo "2584"]
[BlackElo "2432"]
[TimeControl "180+1"]
[EndTime "9:14:40 PDT"]
[Termination "zabivol_mc won by resignation"]

1. e4 {[%clk 0:03:00.9]} 1... d6 {[%clk 0:02:52]} 2. d4 {[%clk 0:02:59.3]} 2...
Nf6 {[%clk 0:02:52.7]} 3. Nc3 {[%clk 0:02:59.1]} 3... e5 {[%clk 0:02:53.2]} 4.
dxe5 {[%clk 0:02:53.2]} 4... dxe5 {[%clk 0:02:54.1]} 5. Qxd8+ {[%clk 0:02:53.5]}
5... Kxd8 {[%clk 0:02:54.2]} 6. Bg5 {[%clk 0:02:52]} 6... Be6 {[%clk 0:02:54]}
7. O-O-O+ {[%clk 0:02:47.7]} 7... Nd7 {[%clk 0:02:54.6]} 8. f4 {[%clk
0:02:33.2]} 8... exf4 {[%clk 0:02:55.1]} 9. Nf3 {[%clk 0:02:29]} 9... h6 {[%clk
0:02:49.3]} 10. Bxf4 {[%clk 0:02:24.7]} 10... Ng4 {[%clk 0:02:31.4]} 11. Rd2
{[%clk 0:02:13.1]} 11... Bc5 {[%clk 0:02:30.3]} 12. h3 {[%clk 0:02:09.4]} 12...
Be3 {[%clk 0:02:15.3]} 13. Bxe3 {[%clk 0:02:05.9]} 13... Nxe3 {[%clk 0:02:16.2]}
14. Bd3 {[%clk 0:01:50.2]} 14... c5 {[%clk 0:01:38.2]} 15. Re1 {[%clk
0:01:37.4]} 15... c4 {[%clk 0:01:35.2]} 16. Rxe3 {[%clk 0:01:29.7]} 16... cxd3
{[%clk 0:01:35.5]} 17. Rexd3 {[%clk 0:01:29.2]} 17... Ke7 {[%clk 0:01:33.5]} 18.
Nd5+ {[%clk 0:01:29.1]} 18... Bxd5 {[%clk 0:01:33.5]} 19. Rxd5 {[%clk
0:01:22.4]} 19... Nb6 {[%clk 0:01:34]} 20. Re5+ {[%clk 0:01:18.2]} 20... Kf8
{[%clk 0:01:28.2]} 21. Rc5 {[%clk 0:01:15.5]} 21... Rb8 {[%clk 0:01:08.8]} 22.
Rc7 {[%clk 0:01:03.4]} 22... g6 {[%clk 0:00:53.8]} 23. Ne5 {[%clk 0:01:01.7]}
23... Rh7 {[%clk 0:00:54.5]} 24. Nxg6+ {[%clk 0:00:57.5]} 1-0